[Event "Silves Open 2025"]
[Site "Fissul"]
[Date "2025.03.05"]
[Round "7.28"]
[White "Silva, Ana Ines Teixeira Da"]
[Black "Almeida, Luis Eduardo dos Rei"]
[Result "1-0"]
[Annotator "NA RC"]
[ECO "C51"]
[WhiteElo "1901"]
[BlackElo "1841"]
[PlyCount "63"]
[EventDate "2025.03.03"]
[EventType "swiss"]
[EventCountry "POR"]
[SourceTitle "playchess.com"]
[Source "ChessBase"]
[SourceQuality "1"]
[TimeControl "5400+30"]

1. e4 {[%emt 0:00:50]} e5 {[%emt 0:00:04]} 2. Nf3 {[%emt 0:00:05]} Nc6 {[%emt 0:00:05]} 3. Bc4 {[%emt 0:00:04]} Bc5 {[%emt 0:00:06]} 4. b4 {[%emt 0:00:08]} Bxb4 {[%emt 0:01:01]} 5. c3 {[%emt 0:00:06]} Bc5 {[%emt 0:06:58]} 6. d4 {[%emt 0:00:20]} exd4 {[%emt 0:00:17]} 7. O-O {[%emt 0:00:35]} Be7 {[%emt 0:25:41]} 8. Qb3 {[%emt 0:05:55]} Na5 {[%emt 0:14:59]} 9. Bxf7+ {[%emt 0:00:24]} Kf8 {[%emt 0:00:06]} 10. Qa4 {[%emt 0:01:58]} Kxf7 {[%emt 0:01:02]} 11. Qxa5 {[%emt 0:00:23]} c5 {[%emt 0:01:34]} 12. Qb5 {[%emt 0:07:55]} d6 {[%emt 0:04:31]} 13. cxd4 {[%emt 0:02:35]} Qb6 {[%emt 0:02:24]} 14. Qc4+ {[%emt 0:03:35]} Be6 {[%emt 0:00:23]} 15. d5 {[%emt 0:01:56]} Bg4 {[%emt 0:00:44]} 16. Nbd2 {[%emt 0:10:27]} Bxf3 {[%emt 0:12:32]} 17. Nxf3 {[%emt 0:05:30]} Bf6 {[%emt 0:00:25]} 18. e5 {[%emt 0:01:47]} dxe5 {[%emt 0:01:06]} 19. Ba3 {[%emt 0:14:53]} Qa6 {[%emt 0:07:01]} 20. Qxa6 {[%emt 0:05:34]} bxa6 {[%emt 0:00:15]} 21. Rac1 {[%emt 0:02:28]} Ne7 {[%emt 0:04:57]} 22. d6 {[%emt 0:05:26]} Nf5 {[%emt 0:01:46]} 23. Rxc5 {[%emt 0:08:28]} Nxd6 {[%emt 0:05:36]} 24. Rc7+ {[%emt 0:01:23]} Ke6 {[%emt 0:00:36]} 25. Rc6 {[%emt 0:00:39]} Rhd8 {[%emt 0:00:47]} 26. Rd1 {[%emt 0:02:35]} Be7 {[%emt 0:00:35]} 27. Rxa6 {[%emt 0:01:02]} Rd7 {[%emt 0:02:08]} 28. Nd2 {[%emt 0:02:26]} Kf5 {[%emt 0:04:17]} 29. Nc4 {[%emt 0:15:33]} Nxc4 {[%emt 0:03:04]} 30. Rxd7 {[%emt 0:00:30]} Bxa3 {[%emt 0:00:30]} 31. Rc7 Rd8 {[%emt 0:00:30]} 32. g4+ {[%emt 0:01:00]} 1-0

[Event "Silves Open 2025"]
[Site "Fissul"]
[Date "2025.03.05"]
[Round "7.29"]
[White "Goncalves, Samuel Jesus P"]
[Black "Munno Moyano, Mario"]
[Result "0-1"]
[Annotator "TA"]
[ECO "A17"]
[WhiteElo "2280"]
[BlackElo "1755"]
[PlyCount "68"]
[EventDate "2025.03.03"]
[EventType "swiss"]
[EventCountry "POR"]
[SourceTitle "playchess.com"]
[Source "ChessBase"]
[SourceQuality "1"]
[TimeControl "5400+30"]

{[%evp 12,68,25,39,43,0,5,-13,-16,-32,-20,-35,-14,0,0,-115,-108,-114,-113,-137,-114,-113,-112,-108,-101,-116,-92,-173,-43,-43,-43,-46,-43,-48,-41,-42,-40,-42,-40,-41,-41,-41,-39,-201,-202,-287,-250,-241,-249,-266,-257,-332,-298,-297,-285,-1025,-972,-1264,-1245]} 1. Nf3 {[%emt 0:00:05]} Nf6 {[%emt 0:00:20]} 2. c4 {[%emt 0:01:02]} e6 {[%emt 0:00:16]} 3. Nc3 {[%emt 0:00:32]} Bb4 {[%emt 0:00:07]} 4. g3 {[%emt 0:02:24]} b6 {[%emt 0:02:04]} 5. Bg2 {[%emt 0:00:50]} Bb7 {[%emt 0:00:13]} 6. O-O {[%emt 0:00:40]} Bxc3 {[%emt 0:01:56]} 7. bxc3 {[%emt 0:00:26]} d6 {[%emt 0:00:45] A17: English Opening: 1...Nf6 with ...Bb4.} 8. d4 {[%emt 0:00:55]} h6 {[%emt 0:00:25]} 9. e3 $146 {[%emt 0:02:29]} (9. Re1 Qc8 10. Bh3 Nbd7 11. Nd2 O-O 12. e4 e5 13. f3 Qd8 14. Nf1 c5 15. Ne3 {1-0 Cuenca Jimenez,J (2524)-Villanueva,M (2480) Jerez de la Frontera IM 2021 (2)}) 9... O-O {[%emt 0:00:19] The position is equal.} 10. Qc2 {[%emt 0:01:57]} Qe7 {[%emt 0:03:00]} 11. a4 {[%emt 0:02:25]} a5 {[%emt 0:01:05]} 12. Ba3 {[%emt 0:01:01]} Nbd7 {[%emt 0:01:24]} 13. Rab1 {[%emt 0:02:48]} (13. Nd2 $11 {remains equal.} Bxg2 14. Kxg2) 13... Be4 $17 {[%emt 0:01:53]} 14. Qb2 {[%emt 0:02:32]} Bxb1 {[%emt 0:00:54]} 15. Rxb1 {[%emt 0:00:13][%cal Of3e5]} Rab8 {[%emt 0:00:17]} 16. Qc2 {[%emt 0:05:48]} e5 {[%emt 0:05:14]} 17. Nd2 {[%emt 0:05:15]} c5 {[%emt 0:04:18]} 18. d5 {[%emt 0:02:46]} Nh7 {[%emt 0:14:24]} 19. h4 {[%emt 0:04:13]} (19. e4 $17) 19... Nhf6 {[%emt 0:08:06]} (19... f5 $19 {...e4 is the strong threat.} 20. e4 f4) 20. e4 $15 {[%emt 0:02:33]} Kh8 {[%emt 0:11:55]} 21. Re1 {[%emt 0:06:58]} Nh7 {[%emt 0:03:05]} 22. Bc1 {[%emt 0:03:50]} Rg8 {[%emt 0:03:01]} 23. Nf3 {[%emt 0:02:13]} Qf6 {[%emt 0:08:31]} 24. Qe2 {[%emt 0:04:09]} Qd8 {[%emt 0:02:34]} 25. Kh1 {[%emt 0:02:49]} Ndf6 {[%emt 0:01:23]} 26. Bh3 {[%emt 0:03:28]} Qe8 {[%emt 0:02:18]} 27. Rg1 $2 {[%emt 0:03:31] [#] Loses the game.} (27. Qc2 $15) 27... Qxa4 $19 {[%emt 0:02:11]} 28. g4 {[%emt 0:06:10]} (28. Re1 {was called for.}) 28... Qd7 {[%emt 0:01:27]} 29. Kh2 {[%emt 0:02:05]} g5 {[%emt 0:00:38]} 30. hxg5 {[%emt 0:04:40]} hxg5 {[%emt 0:03:06]} 31. Kg3 {[%emt 0:03:09]} Rg6 {[%emt 0:00:47]} 32. Rh1 {[%emt 0:02:18]} Kg7 {[%emt 0:01:06]} 33. Nxg5 $2 {[%emt 0:02:13] [#]} (33. Nd2) 33... Nxg5 {[%emt 0:01:04]} 34. Bxg5 {[%emt 0:00:12]} Rxg5 {[%emt 0:00:14] Weighted Error Value: White=0.64/Black=0.16 (very precise)   Loses game:     	White=1     	---        Mistake:       	White=4     	Black=1      Inaccurate:     	White=2     	---        OK:         	White=5     	Black=6      Best:        	White=1     	Black=3} 0-1

[Event "Silves Open 2025"]
[Site "Fissul"]
[Date "2025.03.05"]
[Round "7.31"]
[White "Jeremias, Damaim"]
[Black "Ruiz Esteban, Ruben"]
[Result "0-1"]
[Annotator "NA RC"]
[ECO "E06"]
[WhiteElo "1690"]
[BlackElo "1655"]
[PlyCount "77"]
[EventDate "2025.03.03"]
[EventType "swiss"]
[EventCountry "POR"]
[SourceTitle "playchess.com"]
[Source "ChessBase"]
[SourceQuality "1"]
[TimeControl "5400+30"]

1. Nf3 {[%emt 0:00:00]} d5 {[%emt 0:01:49]} 2. d4 {[%emt 0:00:25]} Nf6 {[%emt 0:00:17]} 3. c4 {[%emt 1:31:35]} e6 {[%emt 0:00:37]} 4. g3 {[%emt 0:00:00]} Be7 {[%emt 0:01:06]} 5. Bg2 {[%emt 0:00:00]} O-O {[%emt 1:29:11]} 6. O-O {[%emt 0:01:30]} c6 {[%emt 0:00:00]} 7. Qc2 {[%emt 0:00:00]} b6 {[%emt 0:00:00]} 8. cxd5 {[%emt 0:00:00]} cxd5 {[%emt 0:00:00]} 9. Nc3 {[%emt 0:00:00]} Nbd7 {[%emt 0:00:00]} 10. Re1 {[%emt 0:00:00]} Bb7 {[%emt 0:00:00]} 11. e4 {[%emt 0:00:00]} dxe4 {[%emt 0:00:00]} 12. Ng5 {[%emt 0:00:00]} Rc8 {[%emt 0:00:00]} 13. Qb3 {[%emt 0:00:00]} h6 {[%emt 0:00:00]} 14. Ngxe4 {[%emt 0:00:00]} Nxe4 {[%emt 0:00:00]} 15. Nxe4 {[%emt 0:00:00]} Bd5 {[%emt 0:00:00]} 16. Qd1 {[%emt 0:00:00]} Nf6 {[%emt 0:00:00]} 17. Nxf6+ {[%emt 0:00:00]} Bxf6 {[%emt 0:00:00]} 18. Be3 {[%emt 0:00:00]} Bxg2 {[%emt 0:00:00]} 19. Kxg2 {[%emt 0:00:00]} Qd5+ {[%emt 0:00:00]} 20. Qf3 {[%emt 0:00:00]} Rfd8 {[%emt 0:00:00]} 21. Qxd5 {[%emt 0:00:00]} Rxd5 {[%emt 0:00:00]} 22. Red1 {[%emt 0:00:00]} Rcd8 {[%emt 0:00:00]} 23. Rac1 {[%emt 0:00:00]} Bxd4 {[%emt 0:00:00]} 24. Rxd4 {[%emt 0:00:00]} Rxd4 {[%emt 0:00:00]} 25. Bxd4 {[%emt 0:00:00]} Rxd4 {[%emt 0:00:00]} 26. Rc8+ {[%emt 0:00:00]} Kh7 {[%emt 0:00:00]} 27. Rc7 {[%emt 0:00:00]} Ra4 {[%emt 0:00:00]} 28. Rxf7 {[%emt 0:00:00]} Rxa2 {[%emt 0:00:00]} 29. Re7 {[%emt 0:00:00]} Rxb2 {[%emt 0:00:00]} 30. Rxa7 {[%emt 0:00:00]} Kg6 {[%emt 0:00:00]} 31. g4 {[%emt 0:00:00]} b5 {[%emt 0:00:00]} 32. Kg3 {[%emt 0:00:00]} b4 {[%emt 0:00:00]} 33. h4 {[%emt 0:00:00]} b3 {[%emt 0:00:00]} 34. f4 {[%emt 0:00:00]} Rb1 {[%emt 0:00:00]} 35. Rb7 {[%emt 0:00:00]} b2 {[%emt 0:00:00]} 36. Kf2 {[%emt 0:00:00]} Rh1 {[%emt 0:00:00]} 37. h5+ {[%emt 0:00:00]} Kh7 {[%emt 0:00:00]} 38. f5 {[%emt 0:00:00]} b1=Q {[%emt 0:00:00]} 39. Rxb1 {[%emt 0:00:00]} 0-1

[Event "Silves Open 2025"]
[Site "Fissul"]
[Date "2025.03.05"]
[Round "7.33"]
[White "Ramos, Vitorino"]
[Black "Li, Leon"]
[Result "0-1"]
[Annotator "NA RC"]
[ECO "C56"]
[WhiteElo "1792"]
[BlackElo "1627"]
[PlyCount "88"]
[EventDate "2025.03.03"]
[EventType "swiss"]
[EventCountry "POR"]
[SourceTitle "playchess.com"]
[Source "ChessBase"]
[SourceQuality "1"]
[TimeControl "5400+30"]

1. e4 {[%emt 0:02:14]} e5 {[%emt 0:00:22]} 2. Nf3 {[%emt 0:00:28]} Nc6 {[%emt 0:00:41]} 3. d4 {[%emt 0:00:25]} exd4 {[%emt 0:00:33]} 4. Bc4 {[%emt 0:00:13]} Nf6 {[%emt 0:02:21]} 5. e5 {[%emt 0:00:11]} d5 {[%emt 0:02:35]} 6. Bb5 {[%emt 0:06:40]} Ne4 {[%emt 0:05:23]} 7. Nxd4 {[%emt 0:01:11]} Bd7 {[%emt 0:05:27]} 8. Nb3 {[%emt 0:13:09]} Be6 {[%emt 0:08:53]} 9. Be3 {[%emt 0:09:08]} h6 {[%emt 0:11:10]} 10. f3 {[%emt 0:06:54]} Ng5 {[%emt 0:04:36]} 11. h4 {[%emt 0:01:19]} Nh7 {[%emt 0:01:34]} 12. Nc5 {[%emt 0:00:54]} Bxc5 {[%emt 0:02:41]} 13. Bxc5 {[%emt 0:00:25]} Qd7 {[%emt 0:04:05]} 14. Qe2 {[%emt 0:02:55]} a6 {[%emt 0:01:58]} 15. Ba4 {[%emt 0:01:06]} O-O-O {[%emt 0:06:36]} 16. Nc3 {[%emt 0:05:31]} f6 {[%emt 0:04:16]} 17. exf6 {[%emt 0:05:49]} Nxf6 {[%emt 0:01:49]} 18. O-O-O {[%emt 0:00:51]} Rhe8 {[%emt 0:04:21]} 19. b4 {[%emt 0:08:20]} Bf7 {[%emt 0:07:32]} 20. Qf1 {[%emt 0:01:31]} Re5 {[%emt 0:05:38]} 21. Bd4 {[%emt 0:01:52]} Re6 {[%emt 0:02:06]} 22. b5 {[%emt 0:02:52]} axb5 {[%emt 0:01:33]} 23. Nxb5 {[%emt 0:00:45]} Nxd4 {[%emt 0:01:51]} 24. Na7+ {[%emt 0:00:34]} Kb8 {[%emt 0:00:46]} 25. Bxd7 {[%emt 0:00:10]} Ne2+ {[%emt 0:00:54]} 26. Kd2 {[%emt 0:01:02]} Rxd7 {[%emt 0:01:25]} 27. Qf2 {[%emt 0:03:47]} d4 {[%emt 0:03:16]} 28. Rde1 {[%emt 0:00:48]} Nc3 {[%emt 0:00:52]} 29. Rxe6 {[%emt 0:00:22]} Bxe6 {[%emt 0:00:10]} 30. Nb5 {[%emt 0:04:47]} Nfe4+ {[%emt 0:01:47]} 31. fxe4 {[%emt 0:01:43]} Nxe4+ {[%emt 0:00:16]} 32. Ke1 {[%emt 0:00:17]} Nxf2 {[%emt 0:00:13]} 33. Kxf2 {[%emt 0:00:19]} c6 {[%emt 0:00:37]} 34. Re1 {[%emt 0:00:43]} Bf7 {[%emt 0:01:08]} 35. Na3 {[%emt 0:02:31]} Bxa2 {[%emt 0:00:23]} 36. Rd1 {[%emt 0:00:29]} Be6 {[%emt 0:00:43]} 37. Re1 {[%emt 0:01:34]} Bf7 {[%emt 0:00:50]} 38. Nb1 {[%emt 0:00:45]} Bg6 {[%emt 0:00:15]} 39. Na3 {[%emt 0:03:27]} Kc7 {[%emt 0:01:06]} 40. Rd1 {[%emt 0:00:35]} d3 {[%emt 0:00:30]} 41. c3 {[%emt 0:01:22]} d2 {[%emt 0:01:18]} 42. Ke3 {[%emt 0:00:13]} Rd3+ {[%emt 0:00:37]} 43. Ke2 {[%emt 0:00:26]} Rxc3 {[%emt 0:00:22]} 44. Ra1 {[%emt 0:03:08]} Rc1 {[%emt 0:00:21]} 0-1

[Event "Silves Open 2025"]
[Site "Fissul"]
[Date "2025.03.05"]
[Round "7.34"]
[White "Rogge, Marloes"]
[Black "Goncalves, Nuno Filipe Pocinho"]
[Result "0-1"]
[Annotator "NA"]
[ECO "C02"]
[WhiteElo "1761"]
[BlackElo "1731"]
[PlyCount "54"]
[EventDate "2025.03.03"]
[EventType "swiss"]
[EventCountry "POR"]
[SourceTitle "playchess.com"]
[Source "ChessBase"]
[SourceQuality "1"]
[TimeControl "5400+30"]

1. e4 {[%emt 0:00:06]} e6 {[%emt 0:11:55]} 2. d4 {[%emt 0:00:34]} d5 {[%emt 0:00:36]} 3. e5 {[%emt 0:01:59]} c5 {[%emt 0:00:55]} 4. Bb5+ {[%emt 0:04:54]} Nc6 {[%emt 0:04:12]} 5. Nf3 {[%emt 0:03:05]} a6 {[%emt 0:00:27]} 6. Bxc6+ {[%emt 0:00:37]} bxc6 {[%emt 0:00:02]} 7. O-O {[%emt 0:00:39]} Qb6 {[%emt 0:00:10]} 8. Nc3 {[%emt 0:04:26]} Nh6 {[%emt 0:01:14]} 9. dxc5 {[%emt 0:01:11]} Bxc5 {[%emt 0:00:23]} 10. Na4 {[%emt 0:00:30]} Qb5 {[%emt 0:00:34]} 11. Nxc5 {[%emt 0:00:32]} Qxc5 {[%emt 0:00:04]} 12. Be3 {[%emt 0:03:03]} Qb5 {[%emt 0:01:21]} 13. Nd4 {[%emt 0:01:34]} Qb7 {[%emt 0:00:45]} 14. Bxh6 {[%emt 0:02:38]} gxh6 {[%emt 0:00:03]} 15. Qh5 {[%emt 0:03:36]} Qxb2 {[%emt 0:00:29]} 16. Nxc6 {[%emt 0:02:36]} Bd7 {[%emt 0:00:33]} 17. Na5 {[%emt 0:03:24]} Qxc2 {[%emt 0:01:15]} 18. Rfc1 {[%emt 0:02:25]} Qg6 {[%emt 0:00:25]} 19. Qf3 {[%emt 0:03:00]} O-O {[%emt 0:03:13]} 20. h3 {[%emt 0:01:00]} f6 {[%emt 0:00:49]} 21. exf6 {[%emt 0:01:59]} Rxf6 {[%emt 0:00:05]} 22. Qa3 {[%emt 0:01:02]} Raf8 {[%emt 0:00:22]} 23. Qg3 {[%emt 0:02:32]} Rxf2 {[%emt 0:00:37]} 24. Qxg6+ {[%emt 0:00:15]} hxg6 {[%emt 0:00:03]} 25. Rc7 {[%emt 0:00:28]} Bb5 {[%emt 0:00:28]} 26. Re7 {[%emt 0:00:42]} Re2 {[%emt 0:01:04]} 27. Nb3 {[%emt 0:00:18]} Rff2 {[%emt 0:00:45]} 0-1

[Event "Silves Open 2025"]
[Site "Fissul"]
[Date "2025.03.05"]
[Round "7.35"]
[White "Tolentino, Andre Angelo"]
[Black "Ribeiro, Margarida"]
[Result "0-1"]
[Annotator "NA RC"]
[ECO "C87"]
[WhiteElo "1843"]
[BlackElo "1519"]
[PlyCount "152"]
[EventDate "2025.03.03"]
[EventType "swiss"]
[EventCountry "POR"]
[SourceTitle "playchess.com"]
[Source "ChessBase"]
[SourceQuality "1"]
[TimeControl "5400+30"]

1. e4 {[%emt 1:31:00]} e5 {[%emt 1:31:00]} 2. Nf3 {[%emt 0:00:30]} Nc6 {[%emt 0:00:30]} 3. Bb5 {[%emt 0:00:30]} d6 {[%emt 0:00:30]} 4. O-O {[%emt 0:00:30]} Nf6 {[%emt 0:00:30]} 5. Re1 {[%emt 0:00:30]} Be7 {[%emt 0:00:30]} 6. c3 {[%emt 0:00:30]} a6 {[%emt 0:00:30]} 7. Ba4 {[%emt 0:00:30]} O-O {[%emt 0:00:30]} 8. h3 {[%emt 0:00:30]} b5 {[%emt 0:00:30]} 9. Bc2 {[%emt 0:00:30]} Bb7 {[%emt 0:00:30]} 10. d4 {[%emt 0:00:30]} Re8 {[%emt 0:00:30]} 11. Nbd2 {[%emt 0:00:30]} Bf8 {[%emt 0:00:30]} 12. Nf1 {[%emt 0:00:30]} exd4 {[%emt 0:00:30]} 13. Nxd4 {[%emt 0:00:30]} Nxd4 {[%emt 0:00:30]} 14. Qxd4 {[%emt 0:00:30]} c5 {[%emt 0:00:30]} 15. Qd3 {[%emt 0:00:30]} Bxe4 {[%emt 0:00:30]} 16. Qd2 {[%emt 0:00:30]} Bxc2 {[%emt 0:00:30]} 17. Rxe8 {[%emt 0:00:30]} Qxe8 {[%emt 0:00:30]} 18. Qxc2 {[%emt 0:00:30]} Qe4 19. Qxe4 {[%emt 0:00:30]} Nxe4 {[%emt 0:01:00]} 20. f3 Nf6 {[%emt 0:00:30]} 21. Bf4 {[%emt 0:01:00]} Rd8 {[%emt 0:00:30]} 22. a4 {[%emt 0:00:30]} Nd5 {[%emt 0:00:30]} 23. Bh2 {[%emt 0:00:30]} b4 {[%emt 0:00:30]} 24. c4 {[%emt 0:00:30]} Nb6 {[%emt 0:00:30]} 25. b3 {[%emt 0:00:30]} a5 {[%emt 0:00:30]} 26. Rd1 {[%emt 0:00:30]} Rd7 {[%emt 0:00:30]} 27. Ne3 {[%emt 0:00:30]} g6 {[%emt 0:00:30]} 28. Nd5 {[%emt 0:00:30]} Nxd5 {[%emt 0:00:30]} 29. Rxd5 {[%emt 0:00:30]} f6 {[%emt 0:00:30]} 30. g4 {[%emt 0:00:30]} h6 {[%emt 0:00:30]} 31. h4 {[%emt 0:00:30]} Kh7 {[%emt 0:00:30]} 32. Kf2 {[%emt 0:00:30]} Kg7 {[%emt 0:00:30]} 33. Bg3 {[%emt 0:00:30]} Kf7 {[%emt 0:00:30]} 34. g5 {[%emt 0:00:30]} hxg5 {[%emt 0:00:30]} 35. hxg5 {[%emt 0:00:30]} fxg5 {[%emt 0:00:30]} 36. Rxg5 {[%emt 0:00:30]} Kf6 {[%emt 0:00:30]} 37. Rd5 {[%emt 0:00:30]} Ke6 {[%emt 0:00:30]} 38. Kg2 {[%emt 0:00:30]} Rh7 {[%emt 0:00:30]} 39. Kg1 {[%emt 0:00:30]} Rh5 {[%emt 0:00:30]} 40. Rd3 {[%emt 0:00:30]} Kd7 {[%emt 0:00:30]} 41. Kf2 {[%emt 0:00:30]} Kc6 {[%emt 0:00:30]} 42. Ke2 {[%emt 0:00:30]} d5 {[%emt 0:00:30]} 43. Rxd5 {[%emt 0:00:30]} Rxd5 {[%emt 0:00:30]} 44. cxd5+ {[%emt 0:00:30]} Kxd5 {[%emt 0:00:30]} 45. Kd3 {[%emt 0:00:30]} Bd6 {[%emt 0:00:30]} 46. Bh4 {[%emt 0:00:30]} Bc7 {[%emt 0:00:30]} 47. Bg5 {[%emt 0:00:30]} Bb6 {[%emt 0:00:30]} 48. Bf6 {[%emt 0:00:30]} Ke6 {[%emt 0:00:30]} 49. Bb2 {[%emt 0:00:30]} Kd5 {[%emt 0:00:30]} 50. Bc1 {[%emt 0:00:30]} Bd8 {[%emt 0:00:30]} 51. Bf4 {[%emt 0:00:30]} g5 {[%emt 0:00:30]} 52. Bd2 {[%emt 0:00:30]} Bf6 {[%emt 0:00:30]} 53. Bc1 {[%emt 0:00:30]} Be7 {[%emt 0:00:30]} 54. Bd2 {[%emt 0:00:30]} Bd8 {[%emt 0:00:30]} 55. Bc1 {[%emt 0:00:30]} Ke5 {[%emt 0:00:30]} 56. Kc4 {[%emt 0:00:30]} Kd6 {[%emt 0:00:30]} 57. Be3 {[%emt 0:00:30]} Ke5 {[%emt 0:00:30]} 58. Kxc5 {[%emt 0:00:30]} Ke6 {[%emt 0:00:30]} 59. Kb5 {[%emt 0:00:30]} Kd5 {[%emt 0:00:30]} 60. Bc5 {[%emt 0:00:30]} Ke5 {[%emt 0:00:30]} 61. Be3 {[%emt 0:00:30]} Kd5 {[%emt 0:00:30]} 62. Bxg5 {[%emt 0:00:30]} Bxg5 {[%emt 0:00:30]} 63. Kxa5 {[%emt 0:00:30]} Kc5 {[%emt 0:00:30]} 64. Ka6 {[%emt 0:00:30]} Kc6 {[%emt 0:00:30]} 65. Ka7 {[%emt 0:00:30]} Be3+ {[%emt 0:00:30]} 66. Ka6 {[%emt 0:00:30]} Bc5 {[%emt 0:00:30]} 67. a5 {[%emt 0:00:30]} Be3 {[%emt 0:00:30]} 68. f4 {[%emt 0:00:30]} Bxf4 {[%emt 0:00:30]} 69. Ka7 {[%emt 0:00:30]} Be3+ {[%emt 0:00:30]} 70. Ka6 {[%emt 0:00:30]} Bg5 {[%emt 0:00:30]} 71. Ka7 {[%emt 0:00:30]} Bd8 {[%emt 0:00:30]} 72. a6 {[%emt 0:00:30]} Bb6+ {[%emt 0:00:30]} 73. Kb8 {[%emt 0:00:30]} Bc7+ {[%emt 0:00:30]} 74. Ka7 {[%emt 0:00:30]} Bb6+ {[%emt 0:00:30]} 75. Kb8 {[%emt 0:00:30]} Kd5 {[%emt 0:00:30]} 76. Kb7 {[%emt 0:00:30]} Bc5 {[%emt 0:00:30]} 0-1

[Event "Silves Open 2025"]
[Site "Fissul"]
[Date "2025.03.05"]
[Round "7.38"]
[White "Botelho, Adelino"]
[Black "Nguyen, Tri Khoi"]
[Result "1-0"]
[Annotator "NA"]
[ECO "D03"]
[WhiteElo "1550"]
[BlackElo "1630"]
[PlyCount "45"]
[EventDate "2025.03.03"]
[EventType "swiss"]
[EventCountry "POR"]
[SourceTitle "playchess.com"]
[Source "ChessBase"]
[SourceQuality "1"]
[TimeControl "5400+30"]

1. d4 {[%emt 0:00:09]} Nf6 {[%emt 0:00:12]} 2. Nf3 {[%emt 0:00:08]} e6 {[%emt 0:00:09]} 3. Bg5 {[%emt 0:00:13]} d5 {[%emt 0:00:22]} 4. Nbd2 {[%emt 0:00:15]} Be7 {[%emt 0:00:11]} 5. e3 {[%emt 0:00:19]} Nbd7 {[%emt 0:00:09]} 6. c3 {[%emt 0:00:34]} O-O {[%emt 0:00:32]} 7. Bd3 {[%emt 0:00:33]} h6 {[%emt 0:00:06]} 8. Bf4 {[%emt 0:01:12]} c5 {[%emt 0:02:26]} 9. Ne5 {[%emt 0:04:24]} Qb6 {[%emt 0:09:34]} 10. Rb1 {[%emt 0:02:31]} Bd6 {[%emt 0:00:26]} 11. h4 {[%emt 0:02:43]} Qc7 {[%emt 0:00:36]} 12. Ndf3 {[%emt 0:06:57]} Nxe5 {[%emt 0:01:57]} 13. dxe5 {[%emt 0:01:41]} Bxe5 {[%emt 0:04:03]} 14. Nxe5 {[%emt 0:01:54]} Qe7 {[%emt 0:00:07]} 15. g4 {[%emt 0:02:27]} Rd8 {[%emt 0:03:38]} 16. g5 {[%emt 0:02:23]} Nh7 {[%emt 0:01:19]} 17. gxh6 {[%emt 0:04:11]} g6 {[%emt 0:00:02]} 18. Qg4 {[%emt 0:09:45]} Nf8 {[%emt 0:05:04]} 19. h5 {[%emt 0:11:18]} f5 {[%emt 0:02:30]} 20. Nxg6 {[%emt 0:04:40]} fxg4 {[%emt 0:01:20]} 21. Nxe7+ {[%emt 0:00:14]} Kf7 {[%emt 0:00:28]} 22. Bg5 {[%emt 0:02:28]} Ke8 {[%emt 0:01:17]} 23. h7 {[%emt 0:03:29]} 1-0

[Event "Silves Open 2025"]
[Site "Fissul"]
[Date "2025.03.06"]
[Round "8.3"]
[White "Serarols Mabras, Bernat"]
[Black "Espinosa Aranda, Angel"]
[Result "1/2-1/2"]
[Annotator "TA"]
[ECO "E61"]
[WhiteElo "2311"]
[BlackElo "2442"]
[PlyCount "60"]
[EventDate "2025.03.03"]
[EventType "swiss"]
[EventCountry "POR"]
[SourceTitle "playchess.com"]
[Source "ChessBase"]
[SourceQuality "1"]
[TimeControl "5400+30"]

{[%evp 9,60,41,39,0,33,17,26,22,48,45,40,22,32,29,37,21,34,16,33,31,39,39,39,43,85,34,56,54,37,17,68,67,80,9,22,11,15,0,46,0,0,0,0,0,0,0,0,0,0,0,0,0,0]} 1. d4 {[%emt 0:02:50]} d6 {[%emt 0:00:15]} 2. Nf3 {[%emt 0:00:06]} Nf6 {[%emt 0:01:37]} 3. c4 {[%emt 0:00:10]} g6 {[%emt 0:00:25]} 4. Nc3 {[%emt 0:00:07]} Bf5 {[%emt 0:00:13]} 5. Nh4 {[%emt 0:02:32]} Bd7 {[%emt 0:00:17]} 6. Nf3 {[%emt 0:04:29] E61: King's Indian: Early deviations for White, including Smyslov System.} Bg7 {[%emt 0:03:39] is the legacy move (6...Bf5).} 7. e4 {[%emt 0:01:57]} O-O {[%emt 0:00:19]} 8. h3 {[%emt 0:00:08] White has an edge.} Nc6 $146 {[%emt 0:05:59]} (8... e5 9. d5 a5 10. Be3 Na6 11. Nd2 Kh8 12. Be2 Ng8 13. h4 Bh6 14. Bxh6 Nxh6 {½-½ Indjic,A (2620)-Mogranzini,R (2459) Titled Tuesday intern op 19th Jul Early blitz 2022 (3)}) 9. d5 {[%emt 0:06:47]} Nb4 {[%emt 0:00:06]} 10. Be2 {[%emt 0:05:30]} e6 {[%emt 0:04:06]} 11. dxe6 {[%emt 0:12:04]} Bxe6 {[%emt 0:00:27]} 12. O-O {[%emt 0:00:16]} Re8 {[%emt 0:03:04]} 13. Bg5 {[%emt 0:07:58]} h6 {[%emt 0:03:52]} 14. Be3 {[%emt 0:04:22]} Nc6 {[%emt 0:12:29]} 15. Qc2 {[%emt 0:04:59]} Nd7 {[%emt 0:14:30]} 16. Rad1 {[%emt 0:04:07]} Nce5 {[%emt 0:02:11]} 17. Nd2 {[%emt 0:16:26]} (17. Nxe5 $16 dxe5 18. Rd3) 17... g5 {[%emt 0:02:16]} 18. f4 {[%emt 0:04:12]} gxf4 {[%emt 0:00:10]} 19. Bxf4 {[%emt 0:00:24]} Ng6 {[%emt 0:01:48]} (19... Rc8 $11) 20. Be3 $14 {[%emt 0:01:47]} Nde5 {[%emt 0:00:26]} 21. Nd5 {[%emt 0:02:14]} (21. Rf2 $16) 21... c6 $11 {[%emt 0:12:18]} 22. Nf4 {[%emt 0:00:06]} Nxf4 {[%emt 0:00:14]} 23. Bxf4 {[%emt 0:00:28]} Qh4 {[%emt 0:05:47]} (23... Qb6+ $11 24. Rf2 Ng6 25. Bxd6 Bd4) 24. Bxe5 {[%emt 0:08:17] Successful Defense White} (24. Qc1 $14 {was preferable.}) 24... dxe5 {[%emt 0:03:57] The position is equal.} ({Of course not} 24... Bxe5 25. Nf3 Qg3 26. Nxe5 dxe5 27. Rf3 $16) 25. c5 {[%emt 0:01:23]} Bxh3 {[%emt 0:03:37]} 26. gxh3 {[%emt 0:03:30] [#]} Qg3+ {[%emt 0:00:06]} 27. Kh1 {[%emt 0:00:02]} Qxh3+ {[%emt 0:00:12]} 28. Kg1 {[%emt 0:00:01]} Qg3+ {[%emt 0:05:17]} 29. Kh1 {[%emt 0:00:01]} Qh3+ {[%emt 0:00:05]} 30. Kg1 {[%emt 0:00:03] [#] Strongly threatening Qb3.} Qg3+ {[%emt 0:00:16] Weighted Error Value: White=0.16 (very precise) /Black=0.12 (very precise)   Mistake:       	White=3     	Black=2      Inaccurate:     	---       	Black=3      OK:         	White=6     	Black=12     Best:        	---       	Black=1} 1/2-1/2